Cogmind - Beta 10.1 @@@ ROGUE MODE // 2020.10.20 @ 15:38:48 Player: derk Result: Destroyed by Z-Imprinter with Zionite Laser-M Performance ------------- Evolutions (3) 1500 Regions Visited (12) 2400 Robots Destroyed (239) 1195 Value Destroyed (6085) 6085 Prototype IDs (29) 580 Alien Tech Used (1) 200 Bonus (-27) -27 TOTAL SCORE: 11933 Bonus ------- High Alert Combat Kills 355 Follower Combat Kills 118 Friendly Fire -500 Cogmind --------- Core Integrity 0/700 Matter 39/300 Energy 15/100 System Corruption 0% Temperature Cool (18) Movement Core (300) Ox5 Location -7/Deep Caves Parts ------- > --- POWER (1) -------- (None) > --- PROPULSION (3) --- (None) > --- UTILITY (7) ------ Experimental Heat Sink Large Storage Unit Makeshift Salvage Targeting Computer Weapon Cycler > --- WEAPON (3) ------- (None) > --- INVENTORY (10) --- AS-neutralizer No. 17b Zionite Laser-M Rocket Array Rocket Array Peak State ------------ > --- POWER ------------ Enhanced Nuclear Core > --- PROPULSION ------- Advanced Treads Medium Treads Biometal Medium Treads > --- UTILITY ---------- Large Storage Unit Large Storage Unit Large Storage Unit Long-range Sensor Array Advanced Signal Interpreter Improved Weapon Shielding Thief Drone Bay > --- WEAPON ----------- Precision Assault Rifle CL-ANK's Mallet > --- INVENTORY -------- Makeshift Power Source Light Neutrino Core Light Treads Light Treads Combat Airjet Gravity Neutralizing Apparatus Makeshift Salvage Targeting Computer Makeshift Salvage Targeting Computer Weapon Cycler Nanoactuators Experimental Weapon Shielding Medium Reactive Plating Medium Reactive Plating Medium Reflective Plating Medium Insulated Plating AS-neutralizer No. 17b Flak Gun Precision Assault Rifle 8R-AWN's Boregun Proton Missile Launcher Proton Missile Launcher Remote Datajack [Rating: 75] Favorites ----------- Power Cold Fusion Reactor Engine Heavy Ion Engine Power Core Enhanced Nuclear Core Reactor Cold Fusion Reactor Propulsion Light Treads Treads Light Treads Leg Advanced Myomer Leg Hover Unit Zionite Glidesys II Utility Large Storage Unit Device Long-range Sensor Array Storage Large Storage Unit Processor Advanced Signal Interpreter Hackware Hacking Suite Protection Improved Weapon Shielding Weapon Precision Assault Rifle Energy Gun EM Pulse Gun Energy Cannon Heavy Particle Cannon Ballistic Gun Precision Assault Rifle Launcher EMP Blaster Special Weapon Remote Datajack Impact Weapon CL-ANK's Mallet Slashing Weapon Katana Build | -11 -10 -10 -9 -9 -9 -8 -8 -7 -7 -7 -7 -7 ------- Run | Scr Mat Min Mat Min Exi Min Mat Fac Low Low Zio Dee Slots Evolved 6 | . . . 2 . . . 2 2 . . . . Power . | . . . . . . . . . . . . . Propulsion 1 | . . . . . . . . 1 . . . . Utility 5 | . . . 2 . . . 2 1 . . . . Weapon . | . . . . . . . . . . . . . Parts Attached 312 | 7 18 1 36 10 30 25 38 55 34 16 16 26 Power 28 | 1 3 . 3 . 4 1 2 4 3 4 . 3 Engine 9 | 1 2 . 3 . 2 . . . . 1 . . Core 12 | . 1 . . . 1 . . 3 2 3 . 2 Reactor 7 | . . . . . 1 1 2 1 1 . . 1 Propulsion 44 | 2 2 . 8 4 3 4 6 6 2 1 . 6 Treads 39 | 2 2 . 8 4 1 4 6 6 2 1 . 3 Leg 2 | . . . . . 2 . . . . . . . Wheel . | . . . . . . . . . . . . . Hover 3 | . . . . . . . . . . . . 3 Flight . | . . . . . . . . . . . . . Utility 123 | 2 4 . 13 1 13 6 21 18 18 6 9 12 Device 39 | . . . 1 . 8 2 3 7 8 3 4 3 Storage 19 | 2 4 . 2 . 3 1 4 . 1 . 1 1 Processor 8 | . . . 1 1 . . . 2 2 1 . 1 Hackware 1 | . . . . . . . . 1 . . . . Protection 56 | . . . 9 . 2 3 14 8 7 2 4 7 Artifact . | . . . . . . . . . . . . . Weapon 117 | 2 9 1 12 5 10 14 9 27 11 5 7 5 Energy Gun 10 | . 1 . 2 . . 1 2 . . . 3 1 Energy Cannon 3 | . . . 1 . . . 1 1 . . . . Ballistic Gun 55 | 2 5 . 6 1 5 7 4 14 6 2 1 2 Ballistic Cannon . | . . . . . . . . . . . . . Launcher 30 | . 3 1 3 3 4 5 2 1 3 2 2 1 Special Weapon 4 | . . . . . . . . 3 1 . . . Impact Weapon 9 | . . . . . . 1 . 8 . . . . Slashing Weapon 6 | . . . . 1 1 . . . 1 1 1 1 Piercing Weapon . | . . . . . . . . . . . . . Special Melee Weapon . | . . . . . . . . . . . . . Unidentified Prototypes 31 | . . . 5 . 9 3 2 2 1 . 2 7 Parts Lost 39 | . . . 1 . 4 5 1 . 2 . . 26 Power 5 | . . . . . 1 . . . . . . 4 Propulsion 11 | . . . . . 1 1 . . 1 . . 8 Utility 12 | . . . 1 . . . 1 . 1 . . 9 Weapon 11 | . . . . . 2 4 . . . . . 5 Highest Loss Streak 26 | . . . 1 . 4 5 1 . 1 . . 26 Average Slot Usage (%) 96 | . 99 100 98 100 85 87 97 97 95 96 95 89 Engine 4 | . 12 . 8 11 10 2 . . . 3 7 5 Core 2 | . 1 14 2 . . . . 1 5 3 . . Reactor 2 | . . . . . . 8 8 5 1 . . . Treads 21 | . 27 28 21 22 11 21 17 23 21 20 21 20 Device 5 | . . . 2 . 5 7 6 7 9 4 6 4 Storage 22 | . 28 28 22 22 17 21 24 23 21 21 20 17 Processor 5 | . . . 4 11 5 . . 7 7 9 7 4 Protection 11 | . . . 14 11 1 3 20 13 11 14 14 20 Energy Gun 1 | . 6 . . . . . 2 . . . . 6 Ballistic Gun 12 | . 20 14 19 12 11 13 12 10 10 11 13 1 Launcher 3 | . 1 13 1 4 7 8 2 . 2 4 2 . Naked Turns . | . . . . . . . . . . . . . Heaviest Build 157 | 14 43 43 53 52 119 128 157 112 106 101 101 85 Greatest Support 85 | 40 40 40 40 43 60 60 57 85 85 78 70 70 Greatest Overweight (x) 5 | . 1 1 2 1 5 3 2 1 1 1 1 2 Average Overweight (x) 1 | . . 1 1 1 1 2 1 . . 1 . . Largest Inventory Capacity 42 | 8 16 16 16 16 30 30 42 22 22 22 22 22 Average Capacity 21 | 5 14 16 16 16 26 29 24 22 22 22 21 16 Most Carried 30 | 7 16 16 16 16 30 30 30 22 22 22 22 22 Average Carried 20 | 4 13 15 15 15 21 28 22 21 21 20 21 12 Final Capacity 30 | 8 16 16 16 16 30 30 22 22 22 22 22 10 Final Carried 30 | 7 16 16 16 16 30 27 22 22 21 22 22 4 Class Distribution -------------------- 61% | Hauler-Mutant 27% | Mutant 4% | Scavenger-Mutant 3% | Hauler-Tank Dominant Class ---------------- Mutant | -10/Materials Mutant | -10/Mines Mutant | -9/Materials Mutant | -9/Mines Hauler-Mutant | -9/Exiles Hauler-Mutant | -8/Mines Hauler-Mutant | -8/Materials Hauler-Mutant | -7/Factory Hauler-Mutant | -7/Lower Caves Hauler-Tank | -7/Lower Caves Hauler-Mutant | -7/Zion Scavenger-Mutant | -7/Deep Caves Resources | -11 -10 -10 -9 -9 -9 -8 -8 -7 -7 -7 -7 -7 ----------- Run | Scr Mat Min Mat Min Exi Min Mat Fac Low Low Zio Dee Matter Collected 7760 | 262 427 30 1019 268 756 593 1462 1406 961 425 81 70 Remotely . | . . . . . . . . . . . . . Salvage Created 9266 | 66 1096 110 1709 322 458 448 2548 1598 421 420 . 70 Parts 562 | 2 68 8 95 22 43 30 130 114 23 19 . 8 Haulers Intercepted 11 | . 2 . 5 . . . 3 1 . . . . Recyclers Shooed 10 | . 3 . 6 . . . 1 . . . . . Parts Field Recycled . | . . . . . . . . . . . . . Retrieved Matter . | . . . . . . . . . . . . . Parts Self-Destructed 21 | . . . . . . . . . 14 7 . . Prevented 11 | . . . . . . . . . 3 8 . . Kills | -11 -10 -10 -9 -9 -9 -8 -8 -7 -7 -7 -7 -7 ------- Run | Scr Mat Min Mat Min Exi Min Mat Fac Low Low Zio Dee Combat Hostiles Destroyed 159 | . 21 2 21 10 5 13 42 27 10 7 . 1 Melee 2 | . . . . . 1 . . 1 . . . . Guns 93 | . 7 . 15 1 1 2 35 23 5 3 . 1 AOE 62 | . 14 2 6 9 3 11 7 3 5 2 . . Classes Destroyed 21 | 1 6 1 3 1 2 1 1 1 2 1 . 1 Worker 18 | . 1 . 3 . . 1 8 5 . . . . Builder 5 | . . 1 2 1 . . 1 . . . . . Tunneler 2 | . . . . . . 1 1 . . . . . Hauler 11 | . 2 . 5 . . . 3 1 . . . . Recycler 14 | 1 2 . 7 . . 1 . 3 . . . . Mechanic 1 | . . . . . . . 1 . . . . . Operator 3 | . 1 . . . . . 2 . . . . . Turret 2 | . . . . . 1 1 . . . . . . Watcher 11 | . 2 . 3 . . . 3 3 . . . . Swarmer 53 | . 6 . 10 5 . 6 7 12 7 . . . Grunt 59 | . 15 2 5 2 . 5 27 . . 3 . . Brawler 1 | . . . 1 . . . . . . . . . Duelist 3 | . . . 1 . . 2 . . . . . . Sentry 20 | . . . 4 2 . . 8 5 1 . . . Hunter 2 | . . . . . . . . . . 2 . . Programmer 11 | . . . . . . . . 10 . 1 . . Behemoth 1 | . . . . . . . . . 1 . . . Zionite 8 | . . . . . 8 . . . . . . . Z-Light 1 | . . . . . . . . . . . . 1 Packrat 1 | . . . . . . . . . . 1 . . Thief 1 | . . . . . . . . . . 1 . . Master Thief 1 | . . . . . . . . . 1 . . . Assembled 7 | . . . . 3 4 . . . . . . . Best Kill Streak 11 | 1 9 3 6 3 6 6 11 5 3 6 . 1 Combat Bots Only 10 | . 8 2 4 3 4 4 10 5 3 6 . 1 Max Kills in Single Turn 6 | 1 6 2 2 3 2 3 3 3 2 2 . 1 Gunslinging 1 | . . . . . . . . . . 1 . . Exploded 6 | . 6 1 2 2 2 3 2 3 2 1 . . Melee 1 | . . . . . 1 . . 1 . . . . Uniques/NPCs Destroyed 5 | . . . . . 4 1 . . . . . . 8R-AWN (-9/Exiles) EX-HEX (-9/Exiles) EX-DEC (-9/Exiles) EX-BIN (-9/Exiles) CL-ANK (-8/Mines) Combat | -11 -10 -10 -9 -9 -9 -8 -8 -7 -7 -7 -7 -7 -------- Run | Scr Mat Min Mat Min Exi Min Mat Fac Low Low Zio Dee Damage Taken 11229 | . 525 79 725 119 1047 1075 1254 1301 612 491 93 3908 Core 1303 | . 86 . 63 14 156 159 116 68 47 30 15 549 Absorbed by Shields 133 | . . . . . . . 133 . . . . . Core Remaining (%) 61 | 100 . 65 . . . 2 78 . . . . . Volleys Fired 625 | 1 55 5 92 13 65 56 160 91 47 28 . 12 Largest 3 | 2 2 1 2 2 2 2 2 2 3 3 . 3 Hottest 116 | 40 60 33 60 56 56 93 105 75 86 95 . 116 Shots Fired 972 | 2 94 5 161 21 71 74 216 169 93 40 . 26 Gun 836 | 2 78 . 142 10 48 52 206 160 85 27 . 26 Cannon 4 | . . . . . . . 3 1 . . . . Launcher 125 | . 16 5 19 11 23 22 7 1 8 13 . . Special 7 | . . . . . . . . 7 . . . . Kinetic 802 | 2 61 . 137 10 48 50 198 160 85 27 . 24 Thermal 16 | . . . . . . 2 11 1 . . . 2 Explosive 31 | . . . 6 . 1 16 7 1 . . . . Electromagnetic 116 | . 33 5 18 11 22 6 . . 8 13 . . Robot Hit Streak 27 | 2 10 6 15 4 10 11 15 27 9 9 . 6 Robot Miss Streak 10 | . 3 . 6 2 3 7 4 3 10 3 . 7 Penetration Max 2 | . . . . . 1 1 2 1 . . . . Secondary Targets 9 | . 1 . 2 1 . . 2 1 . 1 . 1 Max Gunslinging Chain 1 | . 1 . 1 1 . . 1 1 . 1 . 1 Shots Hit Robots 650 | 2 57 5 101 7 43 40 131 132 66 33 3 30 Core Hits 404 | 2 42 5 56 18 29 31 91 64 37 16 . 13 Critical Hits 118 | . . . 2 . 16 9 63 26 1 1 . . Critical Kills 46 | . . . 1 . 2 2 29 12 . . . . Critical Parts Destroyed 57 | . . . 1 . 2 7 32 13 1 1 . . Melee Attacks 80 | . . . . 1 18 . . 30 12 5 3 11 Kinetic 41 | . . . . . . . . 30 11 . . . Impact . | . . . . . . . . . . . . . Slashing 39 | . . . . 1 18 . . . 1 5 3 11 Piercing . | . . . . . . . . . . . . . Sneak Attacks 11 | . . . . 1 . . . 8 . 1 1 . Combat Hostiles . | . . . . . . . . . . . . . Follow-up Attacks . | . . . . . . . . . . . . . Damage Inflicted 18447 | 20 1524 201 2272 618 1276 1720 3768 3963 1350 1179 24 532 Guns 10624 | 20 684 . 1502 66 588 614 2919 2252 1037 469 . 473 Cannons 25 | . . . . . . . 25 . . . . . Explosions 5594 | . 840 201 770 462 315 1106 824 145 313 618 . . Melee 2204 | . . . . 90 373 . . 1566 . 92 24 59 Ramming . | . . . . . . . . . . . . . Kinetic 11715 | 20 489 . 1444 66 588 581 2787 3818 1037 469 . 416 Thermal 721 | . 193 43 64 174 . 33 157 . . . . 57 Explosive 2392 | . . . 300 . 43 1080 824 145 . . . . Electromagnetic 2981 | . 842 158 464 288 272 26 . . 313 618 . . Impact . | . . . . . . . . . . . . . Slashing 638 | . . . . 90 373 . . . . 92 24 59 Piercing . | . . . . . . . . . . . . . Highest Corruption 10 | . . . 5 5 10 7 . 9 9 10 10 . Average Corruption 5 | . . . 5 5 7 5 . 3 9 9 4 . Corruption Purged 8 | . . . . . 3 5 . . . . . . Effects 319 | . . . 7 32 60 24 . 63 88 38 7 . Message Errors 74 | . . . 1 5 10 5 . 15 26 8 4 . Matter Fused 62 | . . . 2 12 14 2 . 10 16 6 . . Heat Flow Errors 25 | . . . . 4 4 1 . 3 6 6 1 . Energy Discharges 34 | . . . 2 1 8 2 . 8 11 1 1 . Parts Rejected 2 | . . . . . . . . 2 . . . . Data Loss (minor) 43 | . . . . 6 6 2 . 10 12 6 1 . Data Loss (major) 15 | . . . . . 4 1 . 1 6 3 . . Misfires 16 | . . . 1 3 3 3 . 2 3 1 . . Misdirections 9 | . . . . . 5 . . . . 4 . . Targeting Errors 34 | . . . 1 1 5 6 . 10 8 3 . . Weapon Failures 5 | . . . . . 1 2 . 2 . . . . Overload Shots . | . . . . . . . . . . . . . Overflow Damage 255 | . . 13 4 60 . 14 20 133 5 6 . . Projectiles . | . . . . . . . . . . . . . Explosions 62 | . . 13 4 . . 14 20 . 5 6 . . Melee 193 | . . . . 60 . . . 133 . . . . Knockbacks . | . . . . . . . . . . . . . Impact . | . . . . . . . . . . . . . Kinetic . | . . . . . . . . . . . . . Secondary . | . . . . . . . . . . . . . Self-Inflicted Damage 197 | . 28 . 6 37 . 17 27 . . 82 . . Shots 19 | . 5 . 3 3 . 1 1 . . 6 . . Rammed . | . . . . . . . . . . . . . Targets Rammed . | . . . . . . . . . . . . . Kicked . | . . . . . . . . . . . . . Crushed . | . . . . . . . . . . . . . Highest Temperature 449 | . 63 7 449 254 140 174 300 228 226 287 128 168 Average Temperature 58 | . 23 4 44 61 41 42 59 46 58 93 67 75 Received Heat Transfer 2676 | . 219 45 156 . . 207 621 78 72 117 . 1161 Effects 2 | . . . 1 1 . . . . . . . . Energy Bleed 2 | . . . 1 1 . . . . . . . . Siege Activations . | . . . . . . . . . . . . . Robots Corrupted 3 | . . . . . 1 . . . . 2 . . Combat Hostiles 2 | . . . . . . . . . . 2 . . Parts Fried 9 | . 2 . 3 1 . . . . 1 2 . . Impact Corruptions . | . . . . . . . . . . . . . Robots Melted . | . . . . . . . . . . . . . Combat Hostiles . | . . . . . . . . . . . . . Parts Melted . | . . . . . . . . . . . . . Heat Transferred 1125 | . 300 50 100 250 . 74 333 . . . . 18 Parts Sabotaged . | . . . . . . . . . . . . . Parts Stolen 14 | . . . . . . . . . 9 5 . . Parts Stripped . | . . . . . . . . . . . . . Power Chain Reactions 10 | . 4 1 1 3 . . . . 1 . . . Missiles Intercepted . | . . . . . . . . . . . . . Alert | -11 -10 -10 -9 -9 -9 -8 -8 -7 -7 -7 -7 -7 ------- Run | Scr Mat Min Mat Min Exi Min Mat Fac Low Low Zio Dee Peak Influence 847 | 5 302 140 555 318 . 430 847 654 . . . . Initial 385 | . 3 70 . 214 . . 133 385 . . . . Average 265 | 2 121 50 361 117 . 273 332 335 . . . . Maximum Alert Level 3 | . 1 . 2 1 . 2 3 2 . . . . Low Security (%) 35 | 100 83 100 11 75 . 12 42 4 . . . . Level 1 44 | . 16 . 37 24 . 77 32 69 . . . . Level 2 16 | . . . 50 . . 10 2 26 . . . . Level 3 3 | . . . . . . . 21 . . . . . Level 4 . | . . . . . . . . . . . . . Level 5 . | . . . . . . . . . . . . . High Security . | . . . . . . . . . . . . . Max Security . | . . . . . . . . . . . . . Squads Dispatched 26 | . 6 . 3 . . . 4 13 . . . . Investigation 5 | . 4 . 1 . . . . . . . . . Extermination 10 | . . . . . . . . 10 . . . . Reinforcement 10 | . 2 . 2 . . . 3 3 . . . . Assault . | . . . . . . . . . . . . . Garrison 1 | . . . . . . . 1 . . . . . Intercept . | . . . . . . . . . . . . . Construction Impeded . | . . . . . . . . . . . . . Haulers Reinforced 1 | . . . . . . . . 1 . . . . Stealth | -11 -10 -10 -9 -9 -9 -8 -8 -7 -7 -7 -7 -7 --------- Run | Scr Mat Min Mat Min Exi Min Mat Fac Low Low Zio Dee Distress Signals 14 | . 1 . 3 4 . . 6 . . . . . Communications Jammed . | . . . . . . . . . . . . . Distress Signals . | . . . . . . . . . . . . . Times Spotted 325 | . 26 5 47 11 54 29 65 43 23 18 1 3 Peak Tracking Total 9 | . 8 3 5 4 9 7 7 4 5 5 1 3 Tactical Retreats 34 | . 3 1 3 . 9 5 5 2 5 1 . . Traps | -11 -10 -10 -9 -9 -9 -8 -8 -7 -7 -7 -7 -7 ------- Run | Scr Mat Min Mat Min Exi Min Mat Fac Low Low Zio Dee Traps Triggered 11 | . 5 . 4 . . . 1 1 . . . . Indirectly 5 | . 4 . 1 . . . . . . . . . Trap Hack Attempts . | . . . . . . . . . . . . . Triggered . | . . . . . . . . . . . . . Disarmed . | . . . . . . . . . . . . . Reprogrammed . | . . . . . . . . . . . . . Reused . | . . . . . . . . . . . . . Traps Extracted . | . . . . . . . . . . . . . Installed . | . . . . . . . . . . . . . Triggered 1 | . . . 1 . . . . . . . . . Exploded 2 | . . . . . 1 1 . . . . . . Machines | -11 -10 -10 -9 -9 -9 -8 -8 -7 -7 -7 -7 -7 ---------- Run | Scr Mat Min Mat Min Exi Min Mat Fac Low Low Zio Dee Machines Disabled 33 | . . 1 6 3 12 . 5 5 1 . . . Max in Single Turn 2 | . . 1 2 2 2 . 1 1 1 . . . Garrison Access 1 | . . . . . . . 1 . . . . . Machines Sabotaged . | . . . . . . . . . . . . . Garrisons Compromised . | . . . . . . . . . . . . . Overloaded Fab Kills . | . . . . . . . . . . . . . Fab Network Shutdowns . | . . . . . . . . . . . . . Hacking | -11 -10 -10 -9 -9 -9 -8 -8 -7 -7 -7 -7 -7 --------- Run | Scr Mat Min Mat Min Exi Min Mat Fac Low Low Zio Dee Machines Accessed 42 | . 7 1 5 2 1 . 11 14 1 . . . Terminals 19 | . 6 . 1 2 . . 6 4 . . . . Fabricators 4 | . . . . . . . . 4 . . . . Repair Stations 8 | . 1 . 2 . . . 2 3 . . . . Recycling Units 1 | . . . . . . . . 1 . . . . Scanalyzers 5 | . . . 2 . . . 2 1 . . . . Garrison Access 2 | . . . . . . . 1 1 . . . . Total Hacks 116 | . 23 1 15 5 1 . 39 31 1 . . . Successful 69 | . 12 1 9 3 1 . 26 16 1 . . . Failed 47 | . 11 . 6 2 . . 13 15 . . . . Catastrophic 1 | . . . . . . . 1 . . . . . Database Lockouts . | . . . . . . . . . . . . . Manual 43 | . 9 . 2 3 . . 18 7 . . 4 . Terminals 60 | . 21 . 3 5 . . 23 8 . . . . Fabricators 8 | . . . . . . . . 8 . . . . Repair Stations 21 | . 2 . 4 . . . 7 8 . . . . Recycling Units 3 | . . . . . . . . 3 . . . . Scanalyzers 17 | . . . 8 . . . 7 2 . . . . Garrison Access 4 | . . . . . . . 2 2 . . . . Terminal Hacks 21 | . 8 1 1 1 1 . 7 1 1 . . . Record 1 | . . . . . 1 . . . . . . . Part Schematic 4 | . 4 . . . . . . . . . . . Open Door 2 | . . 1 . . . . . . 1 . . . Branch Access Points 2 | . 1 . 1 . . . . . . . . . Scanalyzer Index 1 | . . . . . . . 1 . . . . . Unreport Threat 2 | . . . . . . . 1 1 . . . . Locate Traps 3 | . . . . . . . 3 . . . . . Hauler Manifests 2 | . 1 . . . . . 1 . . . . . Zone Layout 4 | . 2 . . 1 . . 1 . . . . . Fabricator Hacks 2 | . . . . . . . . 2 . . . . Load Schematic 1 | . . . . . . . . 1 . . . . Build 1 | . . . . . . . . 1 . . . . Repair Station Hacks 17 | . 2 . 4 . . . 7 4 . . . . Scan Component 9 | . 1 . 2 . . . 4 2 . . . . Repair 8 | . 1 . 2 . . . 3 2 . . . . Recycling Unit Hacks 3 | . . . . . . . . 3 . . . . Recycle Component 1 | . . . . . . . . 1 . . . . Process 1 | . . . . . . . . 1 . . . . Retrieve Matter 1 | . . . . . . . . 1 . . . . Scanalyzer 13 | . . . 4 . . . 7 2 . . . . Insert Component 6 | . . . 3 . . . 2 1 . . . . Analyze 7 | . . . 1 . . . 5 1 . . . . Garrison Access Hacks 1 | . . . . . . . 1 . . . . . Seal Access 1 | . . . . . . . 1 . . . . . Unauthorized Hacks 12 | . 2 . . 2 . . 4 4 . . . . Terminals 12 | . 2 . . 2 . . 4 4 . . . . Track 5 | . 2 . . 1 . . 1 1 . . . . Botnet 5 | . . . . . . . 2 3 . . . . Disrupt 2 | . . . . 1 . . 1 . . . . . Fabricators . | . . . . . . . . . . . . . Repair Stations . | . . . . . . . . . . . . . Recycling Units . | . . . . . . . . . . . . . Scanalyzers . | . . . . . . . . . . . . . Garrison Access . | . . . . . . . . . . . . . Data Cores Recovered . | . . . . . . . . . . . . . Used . | . . . . . . . . . . . . . Hacking Detections 35 | . 5 . 4 2 . . 11 13 . . . . Full Trace Events 1 | . . . . . . . 1 . . . . . Feedback Events . | . . . . . . . . . . . . . Feedback Blocked . | . . . . . . . . . . . . . Robot Schematics Acquired . | . . . . . . . . . . . . . Robots Built . | . . . . . . . . . . . . . Matter . | . . . . . . . . . . . . . Time . | . . . . . . . . . . . . . Total Robot Build Rating . | . . . . . . . . . . . . . Part Schematics Acquired 7 | . 4 . 1 . . . 2 . . . . . Parts Built . | . . . . . . . . . . . . . Matter 190 | . . . . . . . . 190 . . . . Time 95 | . . . . . . . . 95 . . . . Total Part Build Rating . | . . . . . . . . . . . . . Parts Repaired 7 | . 1 . 2 . . . 3 1 . . . . Time 370 | . 26 . 52 . . . 192 100 . . . . Parts Recycled 1 | . . . . . . . . 1 . . . . Recycled Matter 64 | . . . . . . . . 64 . . . . Retrieved Matter 64 | . . . . . . . . 64 . . . . Retrieved Components . | . . . . . . . . . . . . . Parts Scanalyzed 4 | . . . 1 . . . 2 1 . . . . Part Schematics Acquired 3 | . . . 1 . . . 2 . . . . . Parts Damaged 1 | . . . . . . . 1 . . . . . Bothacking | -11 -10 -10 -9 -9 -9 -8 -8 -7 -7 -7 -7 -7 ------------ Run | Scr Mat Min Mat Min Exi Min Mat Fac Low Low Zio Dee Used RIF Installer . | . . . . . . . . . . . . . Robots Hacked 3 | . . . . . . . . 3 . . . . Non-combat 3 | . . . . . . . . 3 . . . . Combat . | . . . . . . . . . . . . . Robot Hacks Applied 5 | . . . . . . . . 5 . . . . no_distress 2 | . . . . . . . . 2 . . . . find_chute 1 | . . . . . . . . 1 . . . . find_fabricator 2 | . . . . . . . . 2 . . . . Relay Couplers Released 4 | . . . . . . . . 4 . . . . Programmers 4 | . . . . . . . . 4 . . . . Robots Rewired . | . . . . . . . . . . . . . Allies Hacked . | . . . . . . . . . . . . . Hacks Repelled . | . . . . . . . . . . . . . Allies | -11 -10 -10 -9 -9 -9 -8 -8 -7 -7 -7 -7 -7 -------- Run | Scr Mat Min Mat Min Exi Min Mat Fac Low Low Zio Dee Total Allies 4 | . . 1 . 3 . . . . . . . . Largest Group 3 | . . 1 . 3 . . . . . . . . Highest-Rated Group 40 | . . 31 . 40 . . . . . . . . Highest-Rated Ally 31 | . . 31 . 16 . . . . . . . . Total Orders 18 | . . . 2 . 7 5 . . 4 . . . FOLLOW 1 | . . . . . . 1 . . . . . . RETURN 17 | . . . 2 . 7 4 . . 4 . . . Ally Attacks 261 | . . . 17 13 132 54 . . 45 . . . Total Damage 2048 | . . . 43 137 929 774 . . 165 . . . Kills 16 | . . . 2 4 3 7 . . . . . . Allies Corrupted . | . . . . . . . . . . . . . Allies Melted . | . . . . . . . . . . . . . Turrets Deployed 1 | . . . . . . 1 . . . . . . Intel | -11 -10 -10 -9 -9 -9 -8 -8 -7 -7 -7 -7 -7 ------- Run | Scr Mat Min Mat Min Exi Min Mat Fac Low Low Zio Dee Robot Analysis Total . | . . . . . . . . . . . . . Derelict Logs Recovered 7 | . . 1 . 1 . . . . 2 2 1 . Drone Launches 63 | . . . 7 . 29 9 . . 18 . . . Drone Recoveries 60 | . . . 7 . 27 9 . . 17 . . . Exploration | -11 -10 -10 -9 -9 -9 -8 -8 -7 -7 -7 -7 -7 ------------- Run | Scr Mat Min Mat Min Exi Min Mat Fac Low Low Zio Dee Turns Passed 20866 | 79 1535 799 1476 1624 1811 765 2334 5007 2467 653 1819 497 Spaces Moved 9936 | 39 752 427 604 870 872 256 886 2447 1274 301 984 224 Core 2 | 2 . . . . . . . . . . . . Treads 9490 | 37 752 427 604 870 439 246 886 2447 1274 301 984 223 Legs 443 | . . . . . 433 10 . . . . . . Wheels . | . . . . . . . . . . . . . Hover 1 | . . . . . . . . . . . . 1 Flight . | . . . . . . . . . . . . . Fastest Speed 50 | 50 160 180 180 180 150 150 165 150 150 180 160 60 Average Speed 174 | 154 172 180 180 180 173 192 180 170 166 180 179 176 Slowest Speed 260 | 160 180 180 200 180 260 220 192 175 180 180 180 210 Overloaded Moves . | . . . . . . . . . . . . . Propulsion Burnouts . | . . . . . . . . . . . . . Robots Hopped . | . . . . . . . . . . . . . Cave-ins Triggered . | . . . . . . . . . . . . . Exploration Rate (%) 63 | 5 86 81 46 98 84 49 74 50 87 53 82 24 Regions Visited 12 Branch Regions 8 Pre-discovered Areas 4 | . . . . 1 1 . . . 1 . 1 . Known Exits Taken 6 | . 1 . 1 . . . . 1 1 1 1 . Unknown Exits Taken 6 | 1 . 1 . 1 1 1 1 . . . . . Scrap Searched 15 | . . 1 . 2 . 3 . . 4 1 4 . Spaces Dug 86 | . 2 . . . . 44 15 15 10 . . . Terrain Destroyed 348 | . 14 4 27 9 11 156 96 19 12 . . . Melee 21 | . . . . . . . . 11 10 . . . Projectile 85 | . . . . . 11 18 52 4 . . . . AOE 242 | . 14 4 27 9 . 138 44 4 2 . . . Terrain Rammed . | . . . . . . . . . . . . . Walls Destroyed . | . . . . . . . . . . . . . Machines Disabled . | . . . . . . . . . . . . . Actions | -11 -10 -10 -9 -9 -9 -8 -8 -7 -7 -7 -7 -7 --------- Run | Scr Mat Min Mat Min Exi Min Mat Fac Low Low Zio Dee Total 12459 | 53 904 453 862 914 1074 460 1477 3073 1511 366 1026 286 Wait 1128 | . 47 19 85 9 51 85 333 382 115 1 . 1 Move 9924 | 38 751 426 603 869 871 255 885 2446 1273 300 983 224 Hop . | . . . . . . . . . . . . . Pick Up 168 | 7 16 1 17 5 20 19 25 25 12 9 12 . Fast Attach 61 | 7 5 . 10 . 3 2 7 11 7 2 2 5 Attach 91 | . . . 5 . 7 9 7 20 13 10 3 17 Detach 18 | . . . . . 3 . 1 7 2 1 2 2 Swap 161 | . 13 1 21 10 20 14 24 24 15 4 11 4 Drop 201 | . 17 1 29 7 16 20 35 35 15 6 10 10 Fire 625 | 1 55 5 92 13 65 56 160 91 47 28 . 12 Melee 80 | . . . . 1 18 . . 30 12 5 3 11 Ram . | . . . . . . . . . . . . . Kick . | . . . . . . . . . . . . . Crush . | . . . . . . . . . . . . . Escape Stasis 2 | . . . . . . . . 2 . . . . Rewire . | . . . . . . . . . . . . . Trap . | . . . . . . . . . . . . . Miscellaneous . | . . . . . . . . . . . . . Route ------- -11/Scrapyard -10/Materials (discovered 4 exits: *Mat x3 / *Min) -10/Mines -9/Materials (discovered 3 exits: *Mat / *Min x2) -9/Mines (discovered 4 exits: *Mat x2 / *Exi / *Zio) -9/Exiles -8/Mines -8/Materials (discovered 2 exits: *Fac x2) -7/Factory (discovered 3 exits: *Fac / *Low x2) -7/Lower Caves -7/Lower Caves -7/Zion (discovered 2 exits: *Dee / [*Pro]) -7/Deep Caves History --------- Turn | Location | Event 22 | -11/Scrapyard | Discovered new exit (range 14) 80 | -11/Scrapyard | Entered Materials 223 | -10/Materials | Discovered new exit (range 6) 302 | -10/Materials | Build established: Mutant 768 | -10/Materials | Destroyed 8 combat bots 840 | -10/Materials | Discovered new exit (range 5) 1036 | -10/Materials | Repaired Lgt. Treads 1240 | -10/Materials | Discovered new exit (range 9) 1240 | -10/Materials | Identified exit to Mines 1541 | -10/Materials | Discovered new exit (range 5) 1615 | -10/Materials | Entered Mines 1689 | -10/Mines | Discovered new exit (range 11) 1722 | -10/Mines | Found the Drone Emporium 1731 | -10/Mines | Found Prototype Device 1953 | -10/Mines | Learned Materials emergency access door positions 1974 | -10/Mines | Received a Mining Laser from a helpful Derelict 2414 | -10/Mines | Entered Materials 2414 | -9/Materials | Evolved 2 slots: Utility x2 2414 | -9/Materials | Identified Thief Drone Bay 2485 | -9/Materials | Repaired Lgt. Treads 2905 | -9/Materials | Repaired Lgt. Treads 2920 | -9/Materials | Discovered new exit (range 13) 3619 | -9/Materials | Identified exit to Mines 3890 | -9/Materials | Entered Mines 3891 | -9/Mines | A Derelict revealed a hidden shortcut to a safe place 3910 | -9/Mines | Assisted by bots powering up and referring to "LRC-V3" 4094 | -9/Mines | Learned location of Zion (-7) 4180 | -9/Mines | Assembled infested the area 4283 | -9/Mines | Received a Rocket Launcher from a helpful Derelict 4506 | -9/Mines | Discovered new exit (range 15) 4963 | -9/Mines | Discovered new exit (range 15) 5123 | -9/Mines | Deemed a non-threat by the Exiles lab entrance 5123 | -9/Mines | Discovered new exit (range 5) 5514 | -9/Mines | Entered Exiles 5561 | -9/Exiles | Met 8R-AWN 5590 | -9/Exiles | Met EX-HEX 5771 | -9/Exiles | Met EX-DEC 5954 | -9/Exiles | Build established: Hauler-Mutant 5996 | -9/Exiles | Visited The Gauntlet 6364 | -9/Exiles | Attacked by the Exiles 6379 | -9/Exiles | Core integrity fell below 50% 6379 | -9/Exiles | System corruption reached 10% 6394 | -9/Exiles | Found 8R-AWN's Boregun 6434 | -9/Exiles | Lost 4 parts (1p1n2w) 6434 | -9/Exiles | Found AS-neutralizer No. 17b 6579 | -9/Exiles | Destroyed 8R-AWN 6869 | -9/Exiles | Destroyed EX-HEX 6889 | -9/Exiles | Allies destroyed EX-DEC 6903 | -9/Exiles | Destroyed EX-BIN 6944 | -9/Exiles | Found Prototype Device 6944 | -9/Exiles | Identified System Purifier 6954 | -9/Exiles | Found Deploy-a-Sentry 7307 | -9/Exiles | Discovered new exit (range 14) 7325 | -9/Exiles | Left Exiles lab with Deploy-a-Sentry 7325 | -9/Exiles | Entered Mines 7410 | -8/Mines | CL-ANK came to Exiles' defense 7413 | -8/Mines | DAS Turret deployed 7600 | -8/Mines | Allies destroyed CL-ANK 7614 | -8/Mines | Found Prototype Impact Weapon 7627 | -8/Mines | Identified CL-ANK's Mallet 7929 | -8/Mines | Discovered new exit (range 14) 8000 | -8/Mines | Core integrity fell below 20% 8012 | -8/Mines | Found 8R-AWN's Boregun 8050 | -8/Mines | Lost 5 parts (1n4w) 8090 | -8/Mines | Entered Materials 8090 | -8/Materials | Evolved 2 slots: Utility x2 8497 | -8/Materials | Repaired Biometal Medium Treads 8543 | -8/Materials | Repaired Med. Reactive Plating 8888 | -8/Materials | Repaired Exp. Weapon Shielding 9245 | -8/Materials | Garrison activated, responded to threat 9877 | -8/Materials | Destroyed 7 combat bots 9950 | -8/Materials | Discovered new exit (range 16) 9959 | -8/Materials | Destroyed 10 combat bots 10409 | -8/Materials | Discovered new exit (range 9) 10424 | -8/Materials | Entered Factory 10424 | -7/Factory | Evolved 2 slots: Propulsion x1, Utility x1 11452 | -7/Factory | Build established: Scavenger-Mutant 11612 | -7/Factory | Repaired Biometal Medium Treads 11716 | -7/Factory | Discovered new exit (range 15) 11740 | -7/Factory | Identified exit to Factory 11828 | -7/Factory | Build established: Hauler-Mutant 12060 | -7/Factory | Discovered new exit (range 8) 12121 | -7/Factory | Identified exit to Lower Caves 13322 | -7/Factory | Discovered exit to Lower Caves (range 15) 15298 | -7/Factory | Fabricated Cmb. Airjet? 15431 | -7/Factory | Entered Lower Caves 15500 | -7/Lower Caves | Learned Factory emergency access door positions 15667 | -7/Lower Caves | Encountered a Warlord checkpoint 16085 | -7/Lower Caves | Found Alien Artifact 16085 | -7/Lower Caves | Identified Core Expander 16085 | -7/Lower Caves | Installed Core Expander, added new Weapon slot 16464 | -7/Lower Caves | Spotted B-75 Beast 16486 | -7/Lower Caves | Destroyed B-75 Beast 16577 | -7/Lower Caves | Spotted V7-T9F(f) 16578 | -7/Lower Caves | Encountered a Master Thief 16580 | -7/Lower Caves | Spotted 3P-QE2(f) 16581 | -7/Lower Caves | Encountered a Master Thief 16582 | -7/Lower Caves | 8R-AWN's Boregun stolen by Master Thief 16588 | -7/Lower Caves | CL-ANK's Mallet stolen by Master Thief 16733 | -7/Lower Caves | Spotted DU-RWC(f) 16734 | -7/Lower Caves | Encountered a Master Thief 16734 | -7/Lower Caves | Spotted GB-9E2(f) 16736 | -7/Lower Caves | Encountered a Master Thief 16740 | -7/Lower Caves | Biometal Medium Treads stolen by Master Thief 16741 | -7/Lower Caves | Prc. Assault Rifle stolen by Master Thief 17034 | -7/Lower Caves | Spotted DM-6P6(f) 17035 | -7/Lower Caves | Encountered a Master Thief 17045 | -7/Lower Caves | Nanoactuators stolen by Master Thief 17048 | -7/Lower Caves | Destroyed DM-6P6(f) 17416 | -7/Lower Caves | Attracted the attention of an 0b10 checkpoint 17575 | -7/Lower Caves | Spotted T2-6WI(f) 17576 | -7/Lower Caves | Encountered a Master Thief 17576 | -7/Lower Caves | Spotted QF-MDK(f) 17577 | -7/Lower Caves | Encountered a Master Thief 17578 | -7/Lower Caves | Lgt. Antimatter Reactor stolen by Master Thief 17581 | -7/Lower Caves | Master Tearclaws stolen by Master Thief 17744 | -7/Lower Caves | Spotted 8M-85E(f) 17744 | -7/Lower Caves | Spotted QV-81I(f) 17745 | -7/Lower Caves | Encountered a Master Thief 17745 | -7/Lower Caves | Encountered a Master Thief 17752 | -7/Lower Caves | Nanoactuators stolen by Master Thief 17758 | -7/Lower Caves | Thief Drone Bay stolen by Master Thief 17849 | -7/Lower Caves | Discovered new exit (range 9) 17861 | -7/Lower Caves | Identified exit to Lower Caves 17898 | -7/Lower Caves | Entered another Lower Caves area 17906 | -7/Lower Caves | Learned Factory interactive machine intel 17965 | -7/Lower Caves | Med. Treads stolen by Master Thief 17969 | -7/Lower Caves | System corruption reached 10% 17972 | -7/Lower Caves | Proton Missile Launcher stolen by Master Thief 18103 | -7/Lower Caves | Spotted LA-OCT(f) 18104 | -7/Lower Caves | Encountered a Master Thief 18113 | -7/Lower Caves | Neutrino Core stolen by Master Thief 18213 | -7/Lower Caves | Learned 4 Factory zone layouts 18223 | -7/Lower Caves | Spotted AF-2Y9(f) 18224 | -7/Lower Caves | Encountered a Master Thief 18227 | -7/Lower Caves | Spotted X1-GAW(f) 18227 | -7/Lower Caves | Lgt. Neutrino Core stolen by Master Thief 18228 | -7/Lower Caves | Encountered a Master Thief 18238 | -7/Lower Caves | Neutrino Core stolen by Master Thief 18535 | -7/Lower Caves | Discovered new exit (range 10) 18549 | -7/Lower Caves | Identified exit to Zion 18551 | -7/Lower Caves | Entered Zion 18639 | -7/Zion | System corruption cleaned by Quarantine Array 18677 | -7/Zion | Discovered new exit (range 15) 18743 | -7/Zion | Received a visual enhancement algorithm 18874 | -7/Zion | Build established: Scavenger-Tank 19079 | -7/Zion | Visited the Megawrench Repair Shop 19088 | -7/Zion | Megawrench repaired 13 parts 19266 | -7/Zion | Found Prototype Launcher 19267 | -7/Zion | Identified Rocket Array 19272 | -7/Zion | Found Rocket Array 19298 | -7/Zion | Learned location of 1 exit from Proximity Caves 19504 | -7/Zion | System corruption cleaned by Quarantine Array 19555 | -7/Zion | Build established: Hauler-Mutant 19583 | -7/Zion | Learned location of Quarantine (-2) 19781 | -7/Zion | Acquired unknown access codes intercepted by a Zionite 20292 | -7/Zion | Opened final containment barrier to the Deep Caves 20315 | -7/Zion | Discovered new exit (range 5) 20319 | -7/Zion | Saw the warning signs outside the Deep Caves entrance 20321 | -7/Zion | Identified exit to Deep Caves 20346 | -7/Zion | Attacked by Zionites 20370 | -7/Zion | Entered Deep Caves 20688 | -7/Deep Caves | Build established: Scavenger-Mutant 20752 | -7/Deep Caves | Attacked by Z-Imprinter 20804 | -7/Deep Caves | Core integrity fell below 50% 20813 | -7/Deep Caves | Found Prototype Protection 20813 | -7/Deep Caves | Identified Zio. Weapon Casing 20848 | -7/Deep Caves | Core integrity fell below 20% 20867 | -7/Deep Caves | Destroyed by Z-Imprinter with Zionite Laser-M Last Messages --------------- 20843_ Identified Zio. Glidesys I. 20844_ Identified Zio. Glidesys II. 20845_ Zio. Laser-S destroyed. 20845_ Lgt. Fission Core destroyed. 20851_ Flak Gun destroyed. 20853_ Acquired Prototype Device. 20853_ Identified Exp. Heat Sink. 20855_ Zio. Glidesys I destroyed. 20855_ Prc. Assault Rifle destroyed. 20857_ Acquired Prototype Protection. 20857_ Identified Zio. Light Carapace. 20858_ Zio. Light Carapace destroyed. 20858_ Arm. Treads destroyed. 20859_ Z-Imprinter Prototype Energy Gun ripped off. 20861_ Com. Battery destroyed. 20861_ Lgt. Nuclear Core destroyed. 20862_ Dropped Lrg. Storage Unit. 20863_ Z-Imprinter Zio. Glidesys II ripped off. 20864_ Tearclaws destroyed. 20865_ Zio. Glidesys II destroyed. Map ----- +----------------------------------------------------+ | | | | | | | | | | | | | | | | | | | ?????????????????????????????????????????????????? | | ????????????????????????????????????????????????## | | ??????????????????????????????????#########????## | | ????????????????????????????????## ##???# | | ??????????????????????######????# ####?# | | ?????????????? ????### ##???# #### | | ????????????? ##### #???# #?# #?# | | ??????????? #???# ##??# ### | | ????????? ????# #??## ## | | ???????? #????## #### | | ?????? ##???## ## | | ???? ;#???# | | ???" ##### ### | | ???" ##?## | | ?""" ##### | | ?? | | ??"" I@! #### | | ??"" z! !###??## | | ??"" *#?????### # | | ?""" = ; #??????## "" ## | | " " ;;#??????## """ ##? | | ##??????# " #?? | | ;#??????# #?? | | ; ??????# #?? | | ;;##?????## ##? | | "" ;; ???????### #? | | """" ;##????????## #? | | ? ; ??????????# ##? | | """ ;##??????????## ##?? | | ?""" ###????????????## #??? | | ??""" #???????????????## #??? | | ??""" #???????????????# ##?? | | ???"" #??????????????# #?? | | ???" #?????????????## #?? | | ??? ##???????####?## ##?? | | ???? #????????# ### ##?? | | ?????? #????????# ##? | | ????????? ?????????# ## | | ??????????? ?????????????## # | | ?????????????????????????????????????####### # # | | ???????????????????????????????????????????# # # | +----------------------------------------------------+ Best States ------------- Heat Dissipation 62 Energy Generation 27 Energy Capacity 470 Matter Stores 300 Matter Capacity 300 Sight Range 16 Robot Scan Range 20 Terrain Scan Density 10 Armor Coverage 675 Resistance: KI 30 Resistance: TH 15 Resistance: EM 20 Propulsion Shielding 66 Weapon Shielding 100 Weapon Cycling 25 Evasion (%) 40 Targeting Accuracy 6 Recoil Reduction 3 Salvage Targeting 4 Offensive Hacking 10 Item Schematics ----------------- Hcp. Storage Unit | -10/Materials | Hacked Lgt. Armor Plating | -10/Materials | Hacked Lgt. Treads | -10/Materials | Hacked Signal Interpreter | -10/Materials | Hacked EMP Blaster | -9/Materials | Scanalyzed Cmb. Airjet | -8/Materials | Scanalyzed Biometal Medium Treads | -8/Materials | Scanalyzed Robot Schematics ------------------ None Fabricated ------------ Nothing Alien Tech Used ----------------- Core Expander Achievements -------------- None Challenges ------------ None Game ------ Seed ModifiedSystemCleaver Manual? 0 Play Time 03:23:43 Cumulative 215.1 hours Start 2020.10.19 @ 23:19:55 End 2020.10.20 @ 15:38:48 Sessions 3 Manual Loads 0 Difficulty Rogue Special Mode None Game No. 92 Rogue 92 Adventurer 0 Explorer 0 Win Type - Total 5 Types 3/0/1/1/0/0/0/0/0 Lore% 51 Gallery% 82 Achievement% 62 Wizard Run 0 Options --------- ASCII 0 Keyboard 0 Movement Numpad Keybinds 0 Fullscreen 1 Font 18/SmallcapsGlow Map View 76x50 Tactical HUD 1 Map Filters NONE Filters NONE Steam 1 RUN: b2a97b98-0d39-4362-982c-d8c929d21773